Cogmind - Beta 17 @@@ ROGUE MODE // 2026.07.25 @ 03:14:44 Player: OBLIQUE Result: Core melted Performance ------------- Evolutions (5) 2500 Regions Visited (14) 2800 Robots Destroyed (85) 425 Value Destroyed (3279) 3279 Prototype IDs (53) 1060 Alien Tech Used (1) 200 Bonus (1735) 1735 TOTAL SCORE: 11999 Bonus ------- High Alert Combat Kills 13 Follower Combat Kills 575 Registered with UFD 300 Met Optimus in HQ 500 Met Data Miner 300 Met Zhirov 300 Friendly Fire -253 Cogmind --------- Core Integrity 0/1000 Matter 289/300 Energy 10/100 System Corruption 7% Temperature Critical (573) Movement Hovering (62) Location -4/Proximity Caves Parts ------- > --- POWER (2) -------- Fusion Reactor > --- PROPULSION (4) --- Gyrokinetic Inverter Gyrokinetic Inverter Gyrokinetic Inverter > --- UTILITY (8) ------ Improved Sensor Array Improved Signal Interpreter 0b10 Decoder Chip [Skirmisher] Core Analyzer Precision Matter Filter Improved Reaction Control System Experimental Weapon Shielding Makeshift Hacking Suite > --- WEAPON (3) ------- Proton Missile Launcher > --- INVENTORY (5) ---- Gyrokinetic Inverter Gyrokinetic Inverter Deep Structural Scanner Transdimensional Reconstructor Axe Peak State ------------ > --- POWER ------------ Light Angular Momentum Engine Neutrino Core > --- PROPULSION ------- Gravmag Array Gyrokinetic Inverter Gyrokinetic Inverter > --- UTILITY ---------- Improved Cooling System Advanced Weight Redist. System Deep Structural Scanner Improved Sensor Array 0b10 Decoder Chip [Skirmisher] Core Analyzer Improved Dynamic Insulation System > --- WEAPON ----------- Variable Charge Gun Heavy Machine Gun Heavy Machine Gun > --- INVENTORY -------- Gyrokinetic Inverter Gyrokinetic Inverter Gyrokinetic Inverter Gyrokinetic Inverter Heavy Flak Cannon [Rating: 80] Favorites ----------- Power Light Deuterium Engine Engine Light Deuterium Engine Power Core Micro Nuclear Core Reactor Fusion Reactor Propulsion Medium Treads Treads Medium Treads Leg Aluminum Leg Wheel Compact Wheel Hover Unit Gyrokinetic Inverter Flight Unit Cesium-ion Thruster Utility Deep Structural Scanner Device Deep Structural Scanner Storage Small Storage Unit Processor Expert System Hackware Makeshift Hacking Suite Protection Makeshift Light Armor Plating Weapon Power Sword Energy Gun Plasma Rifle Energy Cannon EM Pulse Cannon Ballistic Gun Heavy Machine Gun Ballistic Cannon Assault Cannon Launcher Scatter Rocket Array Slashing Weapon Power Sword Build | -11 -10 -10 -10 -8 -6 -6 -6 -6 -5 -5 -5 -5 -5 -4 ------- Run | Yrd Mat Min Sub Scr Fac Low Low Dat Pro Fac Upp Upp Zhi Pro Slots Evolved 10 | . . . . . 8 . . . . 2 . . . . Power 1 | . . . . . . . . . . 1 . . . . Propulsion 2 | . . . . . 2 . . . . . . . . . Utility 6 | . . . . . 5 . . . . 1 . . . . Weapon 1 | . . . . . 1 . . . . . . . . . Parts Attached 80 | 8 6 1 10 13 8 2 . . 1 20 3 4 4 . Power 10 | 1 1 . 2 1 . . . . . 4 . . 1 . Engine 8 | 1 1 . 2 1 . . . . . 3 . . . . Core 1 | . . . . . . . . . . 1 . . . . Reactor 1 | . . . . . . . . . . . . . 1 . Propulsion 20 | 4 2 . 3 3 1 . . . 1 6 . . . . Treads 2 | . . . . 1 . . . . 1 . . . . . Leg 5 | 2 2 . 1 . . . . . . . . . . . Wheel 7 | 2 . . 2 2 1 . . . . . . . . . Hover 6 | . . . . . . . . . . 6 . . . . Flight . | . . . . . . . . . . . . . . . Utility 34 | 1 2 . 3 7 6 2 . . . 6 1 4 2 . Device 20 | . 2 . 3 3 3 1 . . . 4 1 2 1 . Storage 2 | 1 . . . 1 . . . . . . . . . . Processor 7 | . . . . . 3 1 . . . 2 . 1 . . Hackware 1 | . . . . . . . . . . . . 1 . . Protection 4 | . . . . 3 . . . . . . . . 1 . Artifact . | . . . . . . . . . . . . . . . Weapon 16 | 2 1 1 2 2 1 . . . . 4 2 . 1 . Energy Gun 5 | 1 1 . . . 1 . . . . 2 . . . . Energy Cannon 1 | . . . . 1 . . . . . . . . . . Ballistic Gun 6 | 1 . . 2 . . . . . . 2 1 . . . Ballistic Cannon 1 | . . . . 1 . . . . . . . . . . Launcher 1 | . . . . . . . . . . . . . 1 . Special Weapon . | . . . . . . . . . . . . . . . Impact Weapon . | . . . . . . . . . . . . . . . Slashing Weapon 2 | . . 1 . . . . . . . . 1 . . . Piercing Weapon . | . . . . . . . . . . . . . . . Special Melee Weapon . | . . . . . . . . . . . . . . . Unidentified Prototypes 7 | . . . 2 . 1 . . . . . . . 4 . Parts Lost 27 | . 1 . 3 1 . . . . 6 12 3 . . 1 Power 6 | . . . 1 . . . . . 1 3 1 . . . Propulsion 6 | . . . 2 . . . . . 2 1 . . . 1 Utility 10 | . 1 . . 1 . . . . 2 4 2 . . . Weapon 5 | . . . . . . . . . 1 4 . . . . Highest Loss Streak 9 | . 1 . 2 1 . . . . 3 9 2 . . 1 To Critical Strikes . | . . . . . . . . . . . . . . . Average Backups 4 | . 2 6 7 4 3 5 5 5 5 4 4 4 4 5 Power . | . 1 2 1 . . . . . . . . . . . Propulsion . | . . 1 . . . . . . . 2 2 2 2 2 Utility 2 | . . . 2 2 2 4 4 4 4 . 1 . 1 1 Weapon 1 | . . 2 3 1 1 1 1 1 1 1 . 1 1 1 Tool/Special . | . . . . . . . . . . . . . . . Unused Backups 45 | . . . 6 20 10 2 . . 1 2 . 1 . 3 Power 6 | . . . 3 2 1 . . . . . . . . . Propulsion 5 | . . . . 2 1 . . . . . . . . 2 Utility 22 | . . . 2 11 6 1 . . 1 . . 1 . . Weapon 11 | . . . 1 5 2 1 . . . 2 . . . . Tool/Special 1 | . . . . . . . . . . . . . . 1 Average Slot Usage (%) 81 | . 95 100 98 81 87 93 93 93 76 58 49 56 71 79 Engine 7 | . 14 14 13 9 6 6 6 6 2 3 . . . . Core 1 | . . . . 2 . . . . . 1 . . . . Treads 10 | . . . . 13 13 13 13 13 7 . . . . . Leg 2 | . 28 28 16 . . . . . . . . . . . Wheel 4 | . . . 10 4 3 6 6 6 5 . . . . . Hover 5 | . . . . 5 . . . . . 14 23 23 23 20 Device 11 | . 10 14 13 9 17 13 13 13 10 17 11 13 14 17 Storage 5 | . 14 14 14 6 . . . . . . . . . . Processor 7 | . . . . . 19 25 26 26 23 10 11 14 17 17 Protection 3 | . . . . 4 7 6 6 6 5 . . . 2 5 Energy Gun 2 | . 15 14 7 . 5 6 6 6 5 3 . . . . Energy Cannon 1 | . . . . 2 . . . . . . . . . . Ballistic Gun 2 | . 12 10 13 . . . . . . 5 . . . . Launcher 4 | . . . . 5 6 6 6 6 5 . . . 2 5 Slashing Weapon 9 | . . 4 6 13 6 6 6 6 5 . 1 . . . Peak Build Rating 80 | 6 7 8 30 60 67 69 69 69 77 80 51 53 75 75 Average Rating 45 | 4 6 7 17 41 64 68 69 69 64 52 44 49 63 72 On Entrance 38 | . 6 7 8 30 32 67 69 69 69 2 47 39 50 75 Avg Prop Armor Cover (%) 10 | . . . 8 4 16 16 17 17 17 2 12 9 5 . Naked Turns 56 | . . . . . . . . . 54 2 . . . . Heaviest Build 76 | 11 14 15 19 76 32 29 26 26 26 45 12 4 28 28 Greatest Support 70 | 26 20 20 40 56 56 16 16 16 70 51 44 3 22 33 Greatest Overweight (x) 6 | . . . 1 6 1 1 1 1 1 . 2 1 2 . Average Overweight (x) . | . . . . 1 . 1 1 1 . . . . . . Largest Inventory Capacity 10 | 8 8 8 8 10 5 5 5 5 5 5 5 5 5 5 Average Capacity 6 | 5 8 8 8 7 5 5 5 5 5 5 5 5 5 5 Most Carried 9 | 2 6 6 8 9 5 5 5 5 5 5 5 5 5 5 Average Carried 4 | . 2 5 7 5 3 4 5 5 4 4 4 4 4 5 Final Capacity 8 | 8 8 8 8 5 5 5 5 5 5 5 5 5 5 5 Final Carried 8 | 1 6 6 8 5 5 5 5 5 5 5 5 5 5 5 Transmogrified Parts 30 | . . . 3 27 . . . . . . . . . . Integrity Recovered 147 | . . . 51 96 . . . . . . . . . . Class Distribution -------------------- 58% | Mutant 19% | Assassin 6% | Derelict-Mutant 6% | Derelict-Gunner 5% | Scavenger-Mutant 3% | Skirmisher Dominant Class ---------------- Mutant | -10/Materials Scavenger-Mutant | -10/Mines Scavenger-Mutant | -10/Subcaves Mutant | -8/Scraptown Assassin | -6/Factory Assassin | -6/Lower Caves Assassin | -6/Lower Caves Assassin | -6/Data Miner Assassin | -5/Proximity Caves Mutant | -5/Factory Mutant | -5/Upper Caves Derelict-Mutant | -5/Upper Caves Derelict-Mutant | -5/Zhirov Derelict-Mutant | -4/Proximity Caves Resources | -11 -10 -10 -10 -8 -6 -6 -6 -6 -5 -5 -5 -5 -5 -4 ----------- Run | Yrd Mat Min Sub Scr Fac Low Low Dat Pro Fac Upp Upp Zhi Pro Matter Collected 2449 | 276 94 . 201 1150 70 . 40 . 185 249 54 53 . 77 Remotely . | . . . . . . . . . . . . . . . Salvage Created 3849 | 94 194 . 260 2525 313 . 13 . 106 22 57 . 40 225 Parts 197 | 3 14 . 16 128 10 . 1 . 2 1 4 . 1 17 Haulers Intercepted . | . . . . . . . . . . . . . . . Recyclers Shooed 4 | . 2 . . . 2 . . . . . . . . . Parts Field Recycled . | . . . . . . . . . . . . . . . Retrieved Matter . | . . . . . . . . . . . . . . . Parts Self-Destructed 28 | . . . 1 5 . . . . 1 . 9 . . 12 Prevented 14 | . . . . . . 3 . . 4 . 1 . . 6 Parts Restored . | . . . . . . . . . . . . . . . Kills | -11 -10 -10 -10 -8 -6 -6 -6 -6 -5 -5 -5 -5 -5 -4 ------- Run | Yrd Mat Min Sub Scr Fac Low Low Dat Pro Fac Upp Upp Zhi Pro Combat Hostiles Destroyed 77 | . 5 . 6 50 . . . . 5 1 2 . . 8 Melee 3 | . . . 1 . . . . . . . 2 . . . Guns 10 | . 5 . 5 . . . . . . . . . . . Cannons 3 | . . . . 3 . . . . . . . . . . AOE 61 | . . . . 47 . . . . 5 1 . . . 8 Classes Destroyed 16 | 1 2 . 2 7 1 . 1 . 1 1 . . . . Worker 1 | . . . . . 1 . . . . . . . . . Recycler 4 | 1 1 . . . 2 . . . . . . . . . Operator 1 | . . . . . . . . . . 1 . . . . Drone 3 | . . . . 3 . . . . . . . . . . Swarmer 14 | . 3 . . . . . . . . 1 2 . . 8 Grunt 5 | . 2 . . . . . . . 3 . . . . . Sentry 1 | . . . 1 . . . . . . . . . . . Programmer 2 | . . . . . . . . . 2 . . . . . Subdweller 5 | . . . 5 . . . . . . . . . . . Bolteater 1 | . . . . 1 . . . . . . . . . . Federalist 6 | . . . . 6 . . . . . . . . . . Explorer 5 | . . . . 5 . . . . . . . . . . Ranger 6 | . . . . 6 . . . . . . . . . . Guru 3 | . . . . 3 . . . . . . . . . . Scrapper 31 | . . . . 31 . . . . . . . . . . Tinkerer 1 | . . . . . . . 1 . . . . . . . Best Kill Streak 17 | 1 3 . 3 17 2 . . . 5 1 2 . . 7 Combat Bots Only 17 | . 3 . 3 17 . . . . 5 1 2 . . 7 Max Kills in Single Turn 6 | 1 2 . 1 6 1 . 1 . 3 1 1 . . 2 Gunslinging 1 | . 1 . . . . . . . . . . . . . Exploded 6 | . . . . 6 . . . . 3 1 . . . 2 Melee 1 | . . . 1 . . . . . . . 1 . . . Uniques/NPCs Destroyed . | . . . . . . . . . . . . . . . Combat | -11 -10 -10 -10 -8 -6 -6 -6 -6 -5 -5 -5 -5 -5 -4 -------- Run | Yrd Mat Min Sub Scr Fac Low Low Dat Pro Fac Upp Upp Zhi Pro Hostile Shots Fired 385 | . 37 . 32 49 12 6 2 . 48 118 28 3 . 50 Missed 133 | . 11 . 6 7 8 1 . . 16 43 8 . . 33 Hits 252 | . 26 . 26 42 4 5 2 . 32 75 20 3 . 17 Projectile 252 | . 26 . 26 42 4 5 2 . 32 75 20 3 . 17 AOE 2 | . . . 1 . . . . . . 1 . . . . Critical Strikes 8 | . . . 1 2 . 1 . . . 2 1 . . 1 Damage Taken 4972 | . 259 . 511 916 22 71 42 . 621 1631 361 56 3 479 Core 1272 | . 9 . 107 106 5 15 . . 25 442 231 38 . 294 Absorbed by Shields . | . . . . . . . . . . . . . . . Reduced by Siege Mode 16 | . . . . . . . . . 16 . . . . . Redirected to Shielding 57 | . . . . . . . . . . . . . . 57 Core Remaining (%) 68 | 100 . . . 11 . . . . 94 . . . . . Volleys Fired 114 | 3 23 . 26 22 5 . . . 7 15 . . . 13 Largest 3 | 2 2 . 2 3 1 . . . 2 3 . . . 1 Hottest 255 | 70 90 . 83 150 75 . . . 125 255 . . . 39 Shots Fired 195 | 6 46 . 50 42 5 . . . 12 20 . . 1 13 Gun 134 | 6 46 . 50 . 5 . . . 7 20 . . . . Cannon 26 | . . . . 26 . . . . . . . . . . Launcher 35 | . . . . 16 . . . . 5 . . . 1 13 Special . | . . . . . . . . . . . . . . . Kinetic 81 | 3 22 . 33 13 . . . . . 10 . . . . Thermal 65 | 3 23 . 17 . 5 . . . 7 10 . . . . Explosive 21 | . . . . 16 . . . . 5 . . . . . Electromagnetic 28 | . 1 . . 13 . . . . . . . . 1 13 Robot Hit Streak 8 | 2 6 . 8 8 4 . . . 2 5 . . 1 3 Robot Miss Streak 11 | 1 3 . 2 11 1 . . . 4 2 . . . 3 Penetration Max . | . . . . . . . . . . . . . . . Secondary Targets 2 | . 2 . . . . . . . . . . . . . Max Gunslinging Chain 1 | . 1 . . . . . . . . . . . . . Shots Hit Robots 124 | 3 28 . 32 28 7 . 1 . 7 7 3 . 1 7 Core Hits 195 | 2 10 . 11 129 3 . 1 . 18 5 2 . 2 12 Critical Kills . | . . . . . . . . . . . . . . . Critical Parts Destroyed . | . . . . . . . . . . . . . . . Critical Strikes 7 | . 2 . 2 3 . . . . . . . . . . Burn 3 | . 2 . 1 . . . . . . . . . . . Destroy 1 | . . . 1 . . . . . . . . . . . Blast 2 | . . . . 2 . . . . . . . . . . Corrupt 1 | . . . . 1 . . . . . . . . . . Melee Attacks 37 | . . 4 2 3 10 4 3 . 5 . 6 . . . Impact . | . . . . . . . . . . . . . . . Slashing 37 | . . 4 2 3 10 4 3 . 5 . 6 . . . Piercing . | . . . . . . . . . . . . . . . Sneak Attacks 4 | . . . . . 3 . 1 . . . . . . . Combat Hostiles . | . . . . . . . . . . . . . . . Follow-up Attacks . | . . . . . . . . . . . . . . . Damage Inflicted 7589 | 26 310 . 550 4306 320 . 91 . 806 396 93 . 72 619 Guns 1099 | 26 309 . 464 . 90 . . . 77 133 . . . . Cannons 355 | . . . . 355 . . . . . . . . . . Explosions 5618 | . . . . 3951 . . . . 729 247 . . 72 619 Melee 500 | . . . 86 . 230 . 91 . . . 93 . . . Ramming 17 | . 1 . . . . . . . . 16 . . . . Kinetic 783 | 14 120 . 327 210 . . . . . 112 . . . . Thermal 893 | 12 189 . 137 . 90 . . . 77 268 . . . 120 Explosive 4680 | . . . . 3951 . . . . 729 . . . . . Electromagnetic 716 | . . . . 145 . . . . . . . . 72 499 Impact . | . . . . . . . . . . . . . . . Slashing 500 | . . . 86 . 230 . 91 . . . 93 . . . Piercing . | . . . . . . . . . . . . . . . Highest Corruption 7 | . . . . . . . . . 2 7 7 6 6 7 Average Corruption 4 | . . . . . . . . . 1 5 6 6 6 6 Corruption Purged 1 | . . . . . . . . . . . 1 . . . Corruption Blocked . | . . . . . . . . . . . . . . . Effects 26 | . . . . . . . . . 4 6 2 10 3 1 Message Errors 3 | . . . . . . . . . 1 . . 1 1 . Matter Fused 9 | . . . . . . . . . 2 3 1 3 . . Heat Flow Errors 3 | . . . . . . . . . . . 1 1 . 1 Energy Discharges 4 | . . . . . . . . . . 1 . 3 . . Data Loss (minor) 4 | . . . . . . . . . . 1 . 2 1 . Data Loss (major) 1 | . . . . . . . . . . 1 . . . . Misfires 2 | . . . . . . . . . 1 . . . 1 . Overload Shots 4 | . . . . . . . . . . 4 . . . . Overflow Damage 240 | . . . . 46 80 . . . 8 54 14 . 24 14 Projectiles . | . . . . . . . . . . . . . . . Explosions 146 | . . . . 46 . . . . 8 54 . . 24 14 Melee 94 | . . . . . 80 . . . . . 14 . . . Knockbacks 2 | . . . . 2 . . . . . . . . . . Impact . | . . . . . . . . . . . . . . . Kinetic 2 | . . . . 2 . . . . . . . . . . Secondary . | . . . . . . . . . . . . . . . Self-Inflicted Damage 583 | . . . . 215 . . . . 226 105 . . 3 34 Shots 26 | . . . . 12 . . . . 9 2 . . 1 2 Rammed 3 | . . . . . . . . . . 3 . . . . Targets Rammed 4 | . 1 . . . . . . . . 3 . . . . Kicked 1 | . 1 . . . . . . . . . . . . . Crushed . | . . . . . . . . . . . . . . . Highest Temperature 609 | 20 188 . 9 138 24 . . . 113 243 83 133 22 609 Average Temperature 109 | 15 54 . 9 49 13 . . . 67 157 18 73 12 230 Received Heat Transfer 866 | . 102 . 93 377 . . 18 . 72 87 72 27 . 18 Effects 10 | . . . . . . . . . . 4 . . . 6 Interference 4 | . . . . . . . . . . 4 . . . . Short Circuit 1 | . . . . . . . . . . . . . . 1 Damage (minor) 1 | . . . . . . . . . . . . . . 1 Damage (major) 3 | . . . . . . . . . . . . . . 3 Damage (core) 1 | . . . . . . . . . . . . . . 1 Siege Activations 2 | . . . . . . . . . 2 . . . . . Total Turns 19 | . . . . . . . . . 19 . . . . . Longest Duration 16 | . . . . . . . . . 16 . . . . . Martial Activations . | . . . . . . . . . . . . . . . Shielding Activations . | . . . . . . . . . . . . . . . Robots Disrupted . | . . . . . . . . . . . . . . . Combat Hostiles . | . . . . . . . . . . . . . . . Robots Corrupted . | . . . . . . . . . . . . . . . Combat Hostiles . | . . . . . . . . . . . . . . . Parts Fried 1 | . . . . . . . . . . . . . . 1 Impact Corruptions . | . . . . . . . . . . . . . . . Robots Melted . | . . . . . . . . . . . . . . . Combat Hostiles . | . . . . . . . . . . . . . . . Parts Melted 15 | . 3 . 1 10 1 . . . . . . . . . Heat Transferred 1958 | 37 703 . 481 . 200 . . . 150 237 . . . 150 Parts Sabotaged . | . . . . . . . . . . . . . . . Parts Stolen . | . . . . . . . . . . . . . . . Parts Stripped . | . . . . . . . . . . . . . . . Power Chain Reactions 4 | . . . . . . . . . . 2 . . . 2 Alert | -11 -10 -10 -10 -8 -6 -6 -6 -6 -5 -5 -5 -5 -5 -4 ------- Run | Yrd Mat Min Sub Scr Fac Low Low Dat Pro Fac Upp Upp Zhi Pro Maximum Alert Level 3 | . . . . . . . . . . 3 . . . . Low Security (%) 62 | 100 100 100 . . 100 . . . . . . . . . Level 1 . | . . . . . . . . . . . . . . . Level 2 11 | . . . . . . . . . . 32 . . . . Level 3 25 | . . . . . . . . . . 67 . . . . Level 4 . | . . . . . . . . . . . . . . . Level 5 . | . . . . . . . . . . . . . . . High Security . | . . . . . . . . . . . . . . . Max Security . | . . . . . . . . . . . . . . . Peak Influence 900 | . 60 3 . . 42 . . . . 900 . . . . Initial 900 | . . 3 . . . . . . . 900 . . . . Average 286 | . 29 1 . . 3 . . . . 757 . . . . Influence Increases 2578 | 5 143 2 20 . 129 . . . 120 1649 145 150 5 210 Destroy 0b10 Robot/C 600 | . 100 . 20 . 40 . . . 100 140 40 . . 160 Destroy 0b10 Robot/NC 40 | 5 5 . . . 15 . . . . 10 . . 5 . Destroy Leader 80 | . 20 . . . 10 . . . 20 10 . . . 20 Allied During Kill 18 | . . . . . . . . . . 18 . . . . Successful Hack 63 | . 17 . . . 29 . . . . 17 . . . . Select Force Hacks 100 | . . . . . . . . . . 100 . . . . Disable Machine 105 | . . . . . 30 . . . . 75 . . . . Destroy Structure 72 | . 1 2 . . 5 . . . . 64 . . . . Advance Influence 900 | . . . . . . . . . . 900 . . . . Lose Combat Pursuer 600 | . . . . . . . . . . 315 105 150 . 30 Influence Decreases 2408 | 5 135 8 22 . 129 . . . 120 812 391 264 482 40 Entered New Map 909 | . . 5 2 . . . . . . . 311 114 477 . Time Decay 899 | 5 125 3 20 . 109 . . . 100 302 50 150 5 30 Search Patrol Dispatched 200 | . . . . . . . . . . 200 . . . . Lost Part 190 | . 10 . . . . . . . 20 120 30 . . 10 Lost Ally 60 | . . . . . 20 . . . . 40 . . . . Purge Threat 150 | . . . . . . . . . . 150 . . . . Squads Dispatched 14 | . 2 . . . 1 . . . . 10 . . . 1 Investigation 5 | . 2 . . . . . . . . 3 . . . . Extermination 2 | . . . . . 1 . . . . 1 . . . . Reinforcement 4 | . . . . . . . . . . 4 . . . . Assault 3 | . . . . . . . . . . 2 . . . 1 Garrison . | . . . . . . . . . . . . . . . Intercept . | . . . . . . . . . . . . . . . Searches Triggered 2 | . . . . . . . . . . 2 . . . . Construction Impeded 1 | . . . . . . . . . . 1 . . . . Haulers Reinforced . | . . . . . . . . . . . . . . . Active Scanning Responses . | . . . . . . . . . . . . . . . Cargo Convoy Interrupts 1 | . . . . . 1 . . . . . . . . . Stealth | -11 -10 -10 -10 -8 -6 -6 -6 -6 -5 -5 -5 -5 -5 -4 --------- Run | Yrd Mat Min Sub Scr Fac Low Low Dat Pro Fac Upp Upp Zhi Pro Distress Signals 2 | . . . . . . . . . 1 1 . . . . Communications Jammed . | . . . . . . . . . . . . . . . Distress Signals . | . . . . . . . . . . . . . . . Times Spotted 166 | . 5 . 6 57 5 7 4 . 11 42 11 6 . 12 Peak Tracking Total 20 | . 3 . 3 20 2 8 4 . 5 14 5 5 . 7 Tactical Retreats 16 | . . . . . . . . . . 9 3 2 . 2 Traps | -11 -10 -10 -10 -8 -6 -6 -6 -6 -5 -5 -5 -5 -5 -4 ------- Run | Yrd Mat Min Sub Scr Fac Low Low Dat Pro Fac Upp Upp Zhi Pro Traps Triggered 3 | . 2 . . . . . . . . 1 . . . . Indirectly . | . . . . . . . . . . . . . . . Trap Hack Attempts . | . . . . . . . . . . . . . . . Triggered . | . . . . . . . . . . . . . . . Disarmed . | . . . . . . . . . . . . . . . Reprogrammed . | . . . . . . . . . . . . . . . Reused . | . . . . . . . . . . . . . . . Traps Extracted . | . . . . . . . . . . . . . . . Installed 1 | . . . . 1 . . . . . . . . . . Triggered . | . . . . . . . . . . . . . . . Most Traps Carried 1 | . . . . 1 . . . . . . . . . . Machines | -11 -10 -10 -10 -8 -6 -6 -6 -6 -5 -5 -5 -5 -5 -4 ---------- Run | Yrd Mat Min Sub Scr Fac Low Low Dat Pro Fac Upp Upp Zhi Pro Machines Disabled 17 | . . 1 1 6 2 . . . . 5 . . 2 . Max in Single Turn 4 | . . 1 1 1 1 . . . . 4 . . 2 . Garrison Access 1 | . . . . . . . . . . 1 . . . . Machines Repaired . | . . . . . . . . . . . . . . . Machines Dismantled . | . . . . . . . . . . . . . . . Machines Sabotaged . | . . . . . . . . . . . . . . . Overloaded Fab Kills . | . . . . . . . . . . . . . . . Hacking | -11 -10 -10 -10 -8 -6 -6 -6 -6 -5 -5 -5 -5 -5 -4 --------- Run | Yrd Mat Min Sub Scr Fac Low Low Dat Pro Fac Upp Upp Zhi Pro Machines Accessed 28 | . 2 1 1 3 6 1 . 3 . 6 . 1 4 . Terminals 10 | . 2 . . . 3 . . . . 4 . 1 . . Fabricators 3 | . . . . . 1 . . . . 2 . . . . Repair Stations . | . . . . . . . . . . . . . . . Recycling Units 1 | . . . . . 1 . . . . . . . . . Scanalyzers 1 | . . . . . 1 . . . . . . . . . Garrison Access . | . . . . . . . . . . . . . . . Total Hacks 106 | . 6 1 1 28 16 1 . 17 . 19 . 1 16 . Successful 85 | . 3 1 1 28 6 1 . 17 . 11 . 1 16 . Failed 20 | . 3 . . . 9 . . . . 8 . . . . Catastrophic 2 | . . . . . . . . . . 2 . . . . Database Lockouts 1 | . . . . . 1 . . . . . . . . . Manual 27 | . 5 . . . 8 . . . . 14 . . . . Terminals 30 | . 6 . . . 9 . . . . 14 . 1 . . Fabricators 7 | . . . . . 2 . . . . 5 . . . . Repair Stations . | . . . . . . . . . . . . . . . Recycling Units 2 | . . . . . 2 . . . . . . . . . Scanalyzers 3 | . . . . . 3 . . . . . . . . . Garrison Access . | . . . . . . . . . . . . . . . Terminal Hacks 72 | . 1 1 1 28 1 1 . 17 . 5 . 1 16 . Record 28 | . . . . 21 . . . 2 . . . 1 4 . Part Schematic 12 | . . . . . . . . 8 . . . . 4 . Robot Schematic 4 | . . . . . . . . 4 . . . . . . Robot Analysis 11 | . . . . 7 . . . . . . . . 4 . Prototype ID Bank 8 | . . . . . . . . 3 . 1 . . 4 . Open Door 2 | . . 1 . . . 1 . . . . . . . . Branch Access Points 2 | . . . . . 1 . . . . 1 . . . . Terminal Index 1 | . 1 . . . . . . . . . . . . . Alert Level 1 | . . . . . . . . . . 1 . . . . Unreport Threat 1 | . . . . . . . . . . 1 . . . . Zone Layout 1 | . . . . . . . . . . 1 . . . . Proto ID Catalog 1 | . . . 1 . . . . . . . . . . . Fabricator Hacks . | . . . . . . . . . . . . . . . Repair Station Hacks . | . . . . . . . . . . . . . . . Recycling Unit Hacks . | . . . . . . . . . . . . . . . Scanalyzer 1 | . . . . . 1 . . . . . . . . . Retrieve Study 1 | . . . . . 1 . . . . . . . . . Garrison Access Hacks . | . . . . . . . . . . . . . . . Unauthorized Hacks 11 | . 2 . . . 3 . . . . 6 . . . . Terminals 7 | . 2 . . . 2 . . . . 3 . . . . Track 1 | . . . . . . . . . . 1 . . . . Assimilate 1 | . . . . . 1 . . . . . . . . . Botnet 4 | . 1 . . . 1 . . . . 2 . . . . Operators 1 | . 1 . . . . . . . . . . . . . Fabricators 4 | . . . . . 1 . . . . 3 . . . . Fabnet 2 | . . . . . 1 . . . . 1 . . . . Overload 2 | . . . . . . . . . . 2 . . . . Repair Stations . | . . . . . . . . . . . . . . . Recycling Units . | . . . . . . . . . . . . . . . Scanalyzers . | . . . . . . . . . . . . . . . Garrison Access . | . . . . . . . . . . . . . . . Data Cores Recovered 1 | . . . . . . . . . . 1 . . . . Used 1 | . . . . . . . . . . 1 . . . . Hacking Detections 14 | . 2 . . . 6 . . . . 6 . . . . Full Trace Events 1 | . . . . . . . . . . 1 . . . . Feedback Events . | . . . . . . . . . . . . . . . Feedback Blocked . | . . . . . . . . . . . . . . . Robot Schematics Acquired 4 | . . . . . . . . 4 . . . . . . Robots Built . | . . . . . . . . . . . . . . . Authchips . | . . . . . . . . . . . . . . . Time . | . . . . . . . . . . . . . . . Total Robot Build Rating . | . . . . . . . . . . . . . . . Part Schematics Acquired 12 | . . . . . . . . 8 . . . . 4 . Parts Built . | . . . . . . . . . . . . . . . Authchips . | . . . . . . . . . . . . . . . Time . | . . . . . . . . . . . . . . . Total Part Build Rating . | . . . . . . . . . . . . . . . Part Studies Acquired 1 | . . . . . 1 . . . . . . . . . Parts Repaired . | . . . . . . . . . . . . . . . Time . | . . . . . . . . . . . . . . . Parts Recycled . | . . . . . . . . . . . . . . . Recycled Matter . | . . . . . . . . . . . . . . . Retrieved Matter . | . . . . . . . . . . . . . . . Retrieved Components . | . . . . . . . . . . . . . . . Parts Scanalyzed . | . . . . . . . . . . . . . . . Part Schematics Acquired . | . . . . . . . . . . . . . . . Parts Damaged . | . . . . . . . . . . . . . . . Bothacking | -11 -10 -10 -10 -8 -6 -6 -6 -6 -5 -5 -5 -5 -5 -4 ------------ Run | Yrd Mat Min Sub Scr Fac Low Low Dat Pro Fac Upp Upp Zhi Pro Used RIF Installer . | . . . . . . . . . . . . . . . Robots Hacked 3 | . . . . . . . . . . 3 . . . . Non-combat . | . . . . . . . . . . . . . . . Combat 3 | . . . . . . . . . . 3 . . . . Robot Hacks Applied . | . . . . . . . . . . . . . . . Relay Couplers Released 3 | . . . . . . . . . . 3 . . . . Machine Destruction 3 | . . . . . . . . . . 3 . . . . Fabnet Peak Effective % 4 | . . . . . . . . . 3 3 3 3 3 4 Autooverrided 3 | . . . . . . . . . . 3 . . . . Robots Rewired . | . . . . . . . . . . . . . . . Allies Hacked . | . . . . . . . . . . . . . . . Hacks Repelled . | . . . . . . . . . . . . . . . Allies | -11 -10 -10 -10 -8 -6 -6 -6 -6 -5 -5 -5 -5 -5 -4 -------- Run | Yrd Mat Min Sub Scr Fac Low Low Dat Pro Fac Upp Upp Zhi Pro Total Allies 5 | . . . . 1 1 . . . . 3 . . . . Largest Group 2 | . . . . 1 2 . . . . 2 . . . . Highest-Rated Group 142 | . . . . 55 65 . . . . 142 . . . . Highest-Rated Ally 142 | . . . . 55 55 . . . . 142 . . . . Total Orders 6 | . . . . 6 . . . . . . . . . . ROAM 4 | . . . . 4 . . . . . . . . . . FOLLOW 2 | . . . . 2 . . . . . . . . . . Ally Attacks 76 | . . . . 52 9 . . . . 15 . . . . Total Damage 1953 | . . . . 822 303 . . . . 828 . . . . Kills 19 | . . . . 10 2 . . . . 7 . . . . Allies Corrupted . | . . . . . . . . . . . . . . . Allies Melted 11 | . . . . 11 . . . . . . . . . . Intel | -11 -10 -10 -10 -8 -6 -6 -6 -6 -5 -5 -5 -5 -5 -4 ------- Run | Yrd Mat Min Sub Scr Fac Low Low Dat Pro Fac Upp Upp Zhi Pro Active Infowar (turns) 3480 | . 132 . 71 . 718 513 350 152 497 672 . 197 110 68 Optics 498 | . . . 71 . . 1 . . 426 . . . . . Sensors 2635 | . . . . . 473 513 350 152 376 396 . 197 110 68 Structural 2347 | . 132 . . . 718 513 350 152 236 246 . . . . Traps 695 | . . . . . 686 9 . . . . . . . . Decoding 795 | . . . . . . . . . . 671 . . 56 68 Robot Analysis Total 11 | . . . . 7 . . . . . . . . 4 . Derelict Logs Recovered 9 | . . 1 . 3 . 1 . . 1 . . 3 . . Drone Launches 20 | . . . . 20 . . . . . . . . . . Drone Recoveries 14 | . . . . 14 . . . . . . . . . . Decoded 0b10 Intel 21 | . . . . . . . . . . 21 . . . . Patrols 14 | . . . . . . . . . . 14 . . . . Investigations 2 | . . . . . . . . . . 2 . . . . Reinforcements 2 | . . . . . . . . . . 2 . . . . Guards 3 | . . . . . . . . . . 3 . . . . Exploration | -11 -10 -10 -10 -8 -6 -6 -6 -6 -5 -5 -5 -5 -5 -4 ------------- Run | Yrd Mat Min Sub Scr Fac Low Low Dat Pro Fac Upp Upp Zhi Pro Turns Passed 9979 | 92 280 57 716 5274 720 513 350 152 551 677 102 318 110 67 Spaces Moved 7398 | 60 155 35 470 3434 432 283 294 133 418 1002 145 345 136 56 Core 944 | 3 . . . . . . . . 106 274 133 345 83 . Treads 1296 | . . . . 1096 163 . . . 37 . . . . . Legs 390 | 48 155 35 152 . . . . . . . . . . . Wheels 2607 | 9 . . 318 1026 269 283 294 133 275 . . . . . Hover 2161 | . . . . 1312 . . . . . 728 12 . 53 56 Flight . | . . . . . . . . . . . . . . . Fastest Speed 46 | 50 120 120 105 46 115 115 115 115 50 50 50 50 50 62 Average Speed 108 | 112 120 120 114 127 131 115 115 115 102 56 55 58 75 62 Slowest Speed 240 | 120 120 120 190 240 160 115 115 115 160 70 150 100 150 62 Overloaded Moves . | . . . . . . . . . . . . . . . Propulsion Burnouts . | . . . . . . . . . . . . . . . Robots Hopped . | . . . . . . . . . . . . . . . Potential Cave-ins . | . . . . . . . . . . . . . . . Cave-ins Triggered . | . . . . . . . . . . . . . . . Exploration Rate (%) 41 | 4 36 10 31 91 16 47 56 75 62 31 34 57 60 13 Regions Visited 14 Branch Regions 11 Pre-discovered Areas 11 | . . . . 6 . . . 1 . . . 1 3 . Known Exits Taken 11 | . . 1 . 1 1 1 1 1 1 1 1 1 1 . Unknown Exits Taken 3 | 1 1 . 1 . . . . . . . . . . . Scrap Searched 15 | . . . 3 7 . . . . 1 . 1 3 . . Spaces Dug 21 | . . 2 . . 5 4 2 . 5 3 . . . . Terrain Destroyed 520 | . . 2 . 281 5 4 2 . 174 48 . . . 4 Melee 18 | . . 2 . . 5 4 2 . 5 . . . . . Projectile 4 | . . . . . . . . . 1 3 . . . . AOE 498 | . . . . 281 . . . . 168 45 . . . 4 Terrain Rammed . | . . . . . . . . . . . . . . . Walls Destroyed . | . . . . . . . . . . . . . . . Machines Disabled . | . . . . . . . . . . . . . . . Actions | -11 -10 -10 -10 -8 -6 -6 -6 -6 -5 -5 -5 -5 -5 -4 --------- Run | Yrd Mat Min Sub Scr Fac Low Low Dat Pro Fac Upp Upp Zhi Pro Total 9091 | 77 204 42 602 4272 560 464 301 132 516 1090 156 461 141 73 Wait 1323 | 2 15 1 63 740 99 172 5 . 81 31 . 110 . 4 Move 7384 | 59 154 34 469 3433 431 282 293 132 417 1001 144 344 135 56 Hop . | . . . . . . . . . . . . . . . Pick Up 69 | 1 2 1 13 30 3 2 . . 2 12 1 1 1 . Fast Attach 51 | 8 3 . 5 7 6 . . . 1 13 1 3 4 . Attach 25 | . . . 3 5 3 . . . . 10 2 1 1 . Detach 12 | 2 1 . 1 3 1 . . . 1 1 1 1 . . Swap 14 | . 4 1 5 2 . 2 . . . . . . . . Drop 57 | 2 1 1 15 26 2 2 . . 2 4 1 1 . . Fire 114 | 3 23 . 26 22 5 . . . 7 15 . . . 13 Melee 37 | . . 4 2 3 10 4 3 . 5 . 6 . . . Ram 3 | . . . . . . . . . . 3 . . . . Kick 1 | . 1 . . . . . . . . . . . . . Crush . | . . . . . . . . . . . . . . . Escape Stasis . | . . . . . . . . . . . . . . . Rewire . | . . . . . . . . . . . . . . . Trap 1 | . . . . 1 . . . . . . . . . . Miscellaneous . | . . . . . . . . . . . . . . . Route ------- -11/Scrapyard -10/Materials (discovered 3 exits: [*Mat] / *Min x2) -10/Mines -10/Subcaves (discovered 2 exits: [*Mat] / *Scr) -8/Scraptown (discovered 2 exits: *Fac x2) -6/Factory (discovered 5 exits: Fac x3 / *Low x2) -6/Lower Caves -6/Lower Caves (discovered 2 exits: Fac / *Dat) -6/Data Miner -5/Proximity Caves -5/Factory (discovered 3 exits: Fac / *Upp x2) -5/Upper Caves -5/Upper Caves (discovered 2 exits: Fac / *Zhi) -5/Zhirov -4/Proximity Caves History --------- Turn | Location | Event 9 | -11/Scrapyard | Discovered new exit (range 15) 93 | -11/Scrapyard | Entered Materials 111 | -10/Materials | Discovered new exit (range 14) 251 | -10/Materials | Discovered new exit (range 14) 350 | -10/Materials | Discovered new exit (range 14) 373 | -10/Materials | Entered Mines 385 | -10/Mines | Found the Drone Emporium 388 | -10/Mines | Identified exit to Subcaves 391 | -10/Mines | Found Prototype Device 430 | -10/Mines | Entered Subcaves 430 | -10/Subcaves | Identified Splice Drone Bay 431 | -10/Subcaves | Approached by a straggling Scientist 524 | -10/Subcaves | A swath of the cavern ceiling suddenly collapsed 566 | -10/Subcaves | Discovered new exit (range 14) 612 | -10/Subcaves | Build established: Scavenger-Mutant 834 | -10/Subcaves | Disturbed a concealed Subdweller 927 | -10/Subcaves | Visited 4L-MR0's lab 933 | -10/Subcaves | Found Prototype Device 933 | -10/Subcaves | Identified Sfc. Transmogrifier 940 | -10/Subcaves | Found Tower Shield 1146 | -10/Subcaves | Entered Scraptown 1222 | -8/Scraptown | Build established: Mutant 1230 | -8/Scraptown | Scanned Subdweller tech in exchange for log data 1236 | -8/Scraptown | Learned location of 1 exit from Upper Caves 1237 | -8/Scraptown | Learned location of Armory (-4) 1238 | -8/Scraptown | Learned Research stockpile data 1265 | -8/Scraptown | Visited Junk Repository 1295 | -8/Scraptown | Visited CPS Storage 1315 | -8/Scraptown | Visited IN-MT5's Study 1351 | -8/Scraptown | Visited Assassins FH 1385 | -8/Scraptown | Visited Junk Repository 1411 | -8/Scraptown | Visited Cyclists 1931 | -8/Scraptown | Visited Red Mages 1969 | -8/Scraptown | Visited UFD Registry 1969 | -8/Scraptown | Registered with UFD as "Laserrider" 1979 | -8/Scraptown | Visited DA-N13 Charitable Foundation 1985 | -8/Scraptown | Found DCF Scrap (30 items) 1993 | -8/Scraptown | Visited Research Penetration Think Tank 2003 | -8/Scraptown | Visited Derelict Rescue Squad 2014 | -8/Scraptown | Visited LU-1G1's Boring Crew 2032 | -8/Scraptown | Visited Supply Room 2039 | -8/Scraptown | Visited A0-MCA Data Center 2047 | -8/Scraptown | Visited Cartography Club 2067 | -8/Scraptown | Learned location of Upper Caves (-5) 2067 | -8/Scraptown | Learned location of Archives (-4) 2067 | -8/Scraptown | Learned 16 Materials zone layouts 2067 | -8/Scraptown | Learned 24 Factory zone layouts 2067 | -8/Scraptown | Learned 16 Research zone layouts 2067 | -8/Scraptown | Learned 4 Access zone layouts 2067 | -8/Scraptown | Learned 16 Lower Caves zone layouts 2067 | -8/Scraptown | Learned 20 Upper Caves zone layouts 2067 | -8/Scraptown | Learned 24 Upper Caves zone layouts 2067 | -8/Scraptown | Learned 8 Proximity Caves zone layouts 2067 | -8/Scraptown | Learned Storage emergency access door positions 2067 | -8/Scraptown | Learned location of 2 exits from Factory 2067 | -8/Scraptown | Learned location of 2 exits from Research 2067 | -8/Scraptown | Learned location of 1 exit from Proximity Caves 2089 | -8/Scraptown | Visited Analyses Database 2100 | -8/Scraptown | Visited Observation Area 2107 | -8/Scraptown | Visited Botcube Research 2109 | -8/Scraptown | Found Botcube 2541 | -8/Scraptown | Botcube activated 2565 | -8/Scraptown | Botcube completed mutation into treaded form, armed with 2 cannons 3383 | -8/Scraptown | Discovered new exit (range 13) 3685 | -8/Scraptown | Attached Tower Shield, gained temporary slots: Power, Propulsion x2, Utility x2, Weapon x2 5559 | -8/Scraptown | Given a B+ rating by A0-MCA 5625 | -8/Scraptown | Met Optimus 5625 | -8/Scraptown | Accepted into 0bPrime 5711 | -8/Scraptown | Build established: Derelict-Gunner 5745 | -8/Scraptown | Civil war broke out across Scraptown 5748 | -8/Scraptown | Core integrity fell below 50% 5819 | -8/Scraptown | Identified exit to Factory 5872 | -8/Scraptown | Lost 4 allies 5948 | -8/Scraptown | Lost 5 allies 6014 | -8/Scraptown | Destroyed 14 combat bots 6082 | -8/Scraptown | Core integrity fell below 20% 6119 | -8/Scraptown | Destroyed 17 combat bots 6119 | -8/Scraptown | Lost 3 allies 6180 | -8/Scraptown | Optimus destroyed in the chaos of civil war 6235 | -8/Scraptown | Found A0-MCA's Component Scanner 6242 | -8/Scraptown | Found Prototype Processor 6243 | -8/Scraptown | Lost 9 allies 6288 | -8/Scraptown | Found Deep Structural Scanner 6339 | -8/Scraptown | Destroyed 9 combat bots 6342 | -8/Scraptown | Lost 6 allies 6359 | -8/Scraptown | Build established: Mutant 6420 | -8/Scraptown | Entered Factory 6420 | -6/Factory | Accompanied by 1 ally 6420 | -6/Factory | Evolved 8 slots: Propulsion x2, Utility x5, Weapon x1 6420 | -6/Factory | Identified Expert System 6421 | -6/Factory | Identified exit to Factory 6519 | -6/Factory | Central database locked down 6975 | -6/Factory | Identified exit to Lower Caves 6976 | -6/Factory | Build established: Assassin 7048 | -6/Factory | Cargo convoy interrupted 7140 | -6/Factory | Entered Lower Caves 7146 | -6/Lower Caves | Learned Factory garrison access intel 7634 | -6/Lower Caves | Discovered new exit (range 15) 7652 | -6/Lower Caves | Identified exit to Lower Caves 7653 | -6/Lower Caves | Entered another Lower Caves area 7681 | -6/Lower Caves | Discovered exit to Factory (range 13) 7993 | -6/Lower Caves | Discovered new exit (range 13) 8000 | -6/Lower Caves | Ambushed by wild Derelicts 8002 | -6/Lower Caves | Identified exit to Data Miner 8003 | -6/Lower Caves | Entered Data Miner 8003 | -6/Data Miner | Discovered new exit (range 6) 8025 | -6/Data Miner | Met Data Miner 8047 | -6/Data Miner | Learned location of Section 7 (-3) 8047 | -6/Data Miner | Acquired the access code to Warlord's prototype stash 8062 | -6/Data Miner | Received God Mode back door access code from Data Miner 8154 | -6/Data Miner | Identified exit to Proximity Caves 8155 | -6/Data Miner | Entered Proximity Caves 8315 | -5/Proximity Caves | Spotter reported a threat 8368 | -5/Proximity Caves | Spotter reported a threat 8385 | -5/Proximity Caves | Spotter reported a threat 8422 | -5/Proximity Caves | Spotter reported a threat 8438 | -5/Proximity Caves | Spotter reported a threat 8475 | -5/Proximity Caves | Spotter reported a threat 8522 | -5/Proximity Caves | Spotted B-75 Beast 8528 | -5/Proximity Caves | Spotter reported a threat 8652 | -5/Proximity Caves | Released all parts (8) 8676 | -5/Proximity Caves | Learned 8 Factory zone layouts 8683 | -5/Proximity Caves | Lost 3 parts (1n1u1w) 8706 | -5/Proximity Caves | Entered Factory 8706 | -5/Factory | Evolved 2 slots: Power x1, Utility x1 8707 | -5/Factory | Identified exit to Upper Caves 8708 | -5/Factory | Identified exit to Factory 8709 | -5/Factory | Loaded intel: 4 garrison access locations 8905 | -5/Factory | Build established: Mutant 9006 | -5/Factory | Search patrols dispatched 9232 | -5/Factory | Build established: Skirmisher 9306 | -5/Factory | Search patrols dispatched 9310 | -5/Factory | Lost 9 parts (3p1n2u3w) 9376 | -5/Factory | Spotted B-75 Beast 9383 | -5/Factory | Entered Upper Caves 9384 | -5/Upper Caves | Identified exit to Upper Caves 9390 | -5/Upper Caves | Attracted the attention of an 0b10 checkpoint 9398 | -5/Upper Caves | Core integrity fell below 50% 9485 | -5/Upper Caves | Entered another Upper Caves area 9487 | -5/Upper Caves | Discovered new exit (range 133) 9534 | -5/Upper Caves | Build established: Mutant 9562 | -5/Upper Caves | Encountered a Warlord checkpoint 9760 | -5/Upper Caves | Learned Factory garrison access intel 9794 | -5/Upper Caves | Identified exit to Zhirov 9798 | -5/Upper Caves | Learned location of 1 exit from Factory 9803 | -5/Upper Caves | Entered Zhirov 9803 | -5/Zhirov | Discovered new exit (range 3) 9813 | -5/Zhirov | Met Zhirov 9822 | -5/Zhirov | Learned location of Testing (-2) 9822 | -5/Zhirov | Learned location of Quarantine (-3) 9822 | -5/Zhirov | Learned location of Command (-1) 9827 | -5/Zhirov | Zhirov requested help retrieving the SGEMP Prototype 9834 | -5/Zhirov | Found Alien Artifact 9834 | -5/Zhirov | Identified Integrated Reactor 9834 | -5/Zhirov | Installed Integrated Reactor, increased core energy generation (+10) 9874 | -5/Zhirov | Found Alien Artifact 9898 | -5/Zhirov | Build established: Derelict-Mutant 9912 | -5/Zhirov | Identified exit to Proximity Caves 9913 | -5/Zhirov | Entered Proximity Caves 9926 | -4/Proximity Caves | Attracted the attention of an 0b10 outpost 9952 | -4/Proximity Caves | Core integrity fell below 20% 9964 | -4/Proximity Caves | Destroyed 7 combat bots 9981 | -4/Proximity Caves | Core melted Last Messages --------------- mechanism malfunctions. 09965_ Autogun self-destruct mechanism malfunctions. 09968_ Acquired 24 matter. 09969_ Acquired 23 matter. 09970_ Acquired 30 matter. 09973_ VTOL Module fried. 09973_ S-27 Virus destroyed. 09975_ Overheating: Gyrokinetic Inverter damaged (-10). 09976_ System corrupted: Heat flow error (+244). 09977_ Overheating: Gyrokinetic Inverter damaged (-21). 09977_ Overheating: Proton Missile Launcher damaged (-17). 09977_ Overheating: Gyrokinetic Inverter damaged (-14). 09978_ Fusion Reactor broken. 09978_ Overheating: Short circuit. 09981_ Overheating: Core damaged (-160). Map ----- +----------------------------------------------------+ | | | | | | | | | ????????????????????????????????????????????????? | | ????????????????????????????????????????????????? | | ????????????????????????????????????????????????? | | ????????????????????????????????????????????????? | | ????????????????????????????????????????????????? | | ????????????????????????????????????????????????? | | ????????????????????????????????????????????????? | | ????????????????????????????????????????????????? | | ????????????????????????????????????????????????? | | ????????????????????????????????????????????????? | | ????????????????????????????????????????????????? | | ????????????????????????????????????????????????? | | ????????????????????????????????????????????????? | | ????????????????????????????????????????????????? | | ????????????????????????????????????????????????? | | ??????????????????????#######???????????????????? | | ?????????????????????## ##??????????????????? | | ????????????????????## ##?????????????????? | | ????????????????????# ##????????????????? | | ????????????????????# ##???????????????? | | ???????????????###???# #???????????????? | | ??????????????## #???# @ #???????#?# | | ??????????????# #?## ##### #??????? # | | ??????????????# ## #??????????????##### | | ???????????????# ##???????????## | | ???????????????# ##????????### [ ??? | | ???????????????# #???????##= % #????? | | ??????????????# ### ##?# ### % = #?????? | | ??????????????# #??# #?# #?????? | | ??????????????# ???#l ########## %[##?????? | | ??????????????# ????# %= ### ??##???#= ??#???? | | ??????????????##????## [ ### ### ##?# #? #???? | | ???????????????????##= #?# ### ## #???? | | ???????????????##### = ##?# ## #???? | | ??????????????## %### ####???? | | ?????????????## #??# ### ##?????? | | ?????????????#" #????????## #?????? | | ?????????????## ########?## #?????? | | ?????????????#"" ### ###???? | | ?????????????#### #???? | | ????????????????# ## #???? | | ???????????????## ####### #???? | | ???????????????# ## #?????? #???? | | ???????????????# #" ## ? #???? | | ???????????????# ### #######?#???? | | ???????????????## ## #???????????? | +----------------------------------------------------+ Best States ------------- Heat Dissipation 67 Coolant Potential 50 Energy Generation 33 Energy Capacity 365 Matter Stores 300 Matter Capacity 300 Sight Range 22 Robot Scan Range 16 Terrain Scan Density 10 Additional Mass Support 9 EM Shielding 3 Armor Coverage 2000 Weapon Shielding 90 Evasion (%) 63 Core Analysis 6 Recoil Reduction 2 Matter Filtering 50 Offensive Hacking 11 Item Schematics ----------------- Combat Drone Bay | -6/Data Miner | Free Lgt. Regenerative Plating | -6/Data Miner | Free Enh. Flexi-carbon Leg | -6/Data Miner | Free Imp. Energy Well | -6/Data Miner | Free Ionic Axe | -6/Data Miner | Free Adv. Medium Treads | -6/Data Miner | Free Adv. Power Amplifier | -6/Data Miner | Free Adv. Datajack | -6/Data Miner | Free Assault Drone Bay | -5/Zhirov | Free Exp. Heat Sink | -5/Zhirov | Free Exp. Optical Array | -5/Zhirov | Free Imp. Arc Thrower | -5/Zhirov | Free Robot Schematics ------------------ R-10 Processor | -6/Data Miner | Free G-50 Soldier | -6/Data Miner | Free X-62 Marksman | -6/Data Miner | Free B-60 Warrior | -6/Data Miner | Free Fabricated ------------ Nothing Repaired ---------- Nothing Studied --------- Power Sword | -6/Factory | Hacked Alien Tech Used ----------------- Integrated Reactor Achievements -------------- None Challenges ------------ None Game ------ Seed GrenadeDamperCalibrator Manual? 0 Play Time 01:49:50 Cumulative 181.7 hours Start 2026.07.25 @ 01:13:04 End 2026.07.25 @ 03:14:44 Sessions 1 Manual Loads 0 Difficulty Rogue Special Mode None Game No. 101 Rogue 101 Adventurer 0 Explorer 0 Win Type - Total 4 Types 4/0/0/0/0/0/0/0/0/0 Lore% 71 Gallery% 62 Achievement% 54 Wizard Run 0 Options --------- Layout 1 ASCII 0 Keyboard 0 Movement Numpad Keybinds 0 Fullscreen 1 Font 24/Smallcaps Map View 50x35 Zoom Use 0% Tactical HUD 1 Map Filters NONE Filters NONE Steam 1 RUN: 873b74e6-6f2b-404f-8624-2cc0379170e3